[Event "FIDE WY-U16 Olympiad 2022"]
[Site "Nakhchivan"]
[Date "2022.10.04"]
[Round "3.23"]
[White "Zhao, Jeffrey Renfei"]
[Black "Fawaz, Mohamad"]
[Result "1/2-1/2"]
[ECO "B13"]
[WhiteElo "1807"]
[BlackElo "1553"]
[Annotator "NA RC COMBH"]
[PlyCount "86"]
[EventDate "2022.10.02"]
[EventType "team-tourn"]
[EventCountry "AZE"]
[SourceTitle "playchess.com"]
[Source "ChessBase"]
[SourceQuality "1"]
[WhiteTeam "Canada"]
[BlackTeam "Lebanon"]
[WhiteTeamCountry "CAN"]
[BlackTeamCountry "LBN"]
[TimeControl "40/5400+30:1800+30"]

1. e4 {[%emt 0:00:06]} c6 {[%emt 0:00:47]} 2. d4 {[%emt 0:00:06]} d5 {[%emt 0:00:04]} 3. exd5 {[%emt 0:00:11]} cxd5 {[%emt 0:00:07]} 4. c4 {[%emt 0:00:04]} Nf6 {[%emt 0:00:21]} 5. Nc3 {[%emt 0:00:06]} Nc6 {[%emt 0:00:18]} 6. Bg5 {[%emt 0:00:06]} Bg4 {[%emt 0:14:47]} 7. f3 {[%emt 0:21:13]} Be6 $11 {[%emt 0:13:13]} 8. Nge2 {[%emt 0:02:04]} ({Better is} 8. c5) 8... h6 {[%emt 0:01:05]} (8... dxc4 $5 {[%cal Rd8a5]} 9. Nf4 Nxd4 10. Nxe6 Nxe6 $11) 9. Bxf6 {[%emt 0:20:41]} exf6 {[%emt 0:00:17]} 10. Nf4 {[%emt 0:19:46]} Bd6 {[%emt 0:10:08]} 11. Nfxd5 {[%emt 0:04:56]} O-O {[%emt 0:01:37]} 12. Kf2 {[%emt 0:07:07]} Rc8 {[%emt 0:03:30]} 13. Ne3 {[%emt 0:08:44]} Nxd4 {[%emt 0:04:16]} 14. g3 {[%emt 0:10:19]} Bc5 {[%emt 0:11:40]} 15. Kg2 {[%emt 0:01:18]} a6 16. Bd3 {[%emt 0:00:58]} Re8 {[%emt 0:12:15]} 17. Re1 {[%emt 0:00:37]} Qd7 {[%emt 0:01:12]} 18. Kh1 {[%emt 0:00:33]} Nxf3 {[%emt 0:01:54]} 19. Qxf3 {[%emt 0:00:10]} Qxd3 {[%emt 0:00:05]} 20. Rad1 {[%emt 0:00:12]} Qg6 {[%emt 0:00:32]} 21. Qf1 {[%emt 0:01:04]} Qh5 {[%emt 0:01:57]} 22. Ncd5 {[%emt 0:00:31]} Bxe3 {[%emt 0:04:48]} 23. Nxe3 {[%emt 0:00:31]} Qa5 {[%emt 0:00:51]} 24. b3 {[%emt 0:00:34]} Rcd8 {[%emt 0:01:41]} 25. Qf2 {[%emt 0:00:24]} Qc3 {[%emt 0:04:18]} 26. Kg1 {[%emt 0:00:37]} Rxd1 {[%emt 0:03:35]} 27. Rxd1 {[%emt 0:00:01]} Qe5 {[%emt 0:01:47]} 28. Nd5 {[%emt 0:00:53]} Bg4 {[%emt 0:00:25]} 29. Rf1 {[%emt 0:00:35]} Qd6 {[%emt 0:01:58]} 30. Qd4 {[%emt 0:00:27]} Qd7 {[%emt 0:03:08]} 31. Rxf6 {[%emt 0:00:10]} Re1+ {[%emt 0:01:46]} 32. Rf1 {[%emt 0:00:15]} Rxf1+ {[%emt 0:00:03]} 33. Kxf1 {[%emt 0:00:01]} Qf5+ {[%emt 0:00:19]} 34. Ke1 {[%emt 0:01:37]} Qb1+ {[%emt 0:00:19]} 35. Kd2 {[%emt 0:00:26]} Qxa2+ {[%emt 0:00:25]} 36. Kc1 {[%emt 0:00:29]} Qa3+ {[%emt 0:01:16]} 37. Kd2 {[%emt 0:00:14]} Qa5+ {[%emt 0:00:41]} 38. Kc2 {[%emt 0:00:28]} Bf5+ {[%emt 0:00:50]} 39. Kb2 {[%emt 0:00:01]} Qe1 {[%emt 0:00:51]} 40. Qb6 {[%emt 0:00:57]} Qd2+ {[%emt 0:00:25]} 41. Ka3 {[%emt 0:30:13]} Qc1+ {[%emt 0:01:34]} 42. Kb4 {[%emt 0:00:00]} Qe1+ {[%emt 0:07:25]} 43. Kc5 {[%emt 0:00:00]} Qf2+ {[%emt 0:02:35]} 1/2-1/2

[Event "FIDE WY-U16 Olympiad 2022"]
[Site "Nakhchivan"]
[Date "2022.10.04"]
[Round "3.23"]
[White "Hajialiyev, Islam"]
[Black "Zajakins, Artjoms"]
[Result "1-0"]
[ECO "A45"]
[WhiteElo "1731"]
[BlackElo "1810"]
[Annotator "NA RC COMBH"]
[PlyCount "127"]
[EventDate "2022.10.02"]
[EventType "team-tourn"]
[EventCountry "AZE"]
[SourceTitle "playchess.com"]
[Source "ChessBase"]
[SourceQuality "1"]
[TimeControl "40/5400+30:1800+30"]

1. d4 {[%emt 0:00:05]} Nf6 {[%emt 0:00:13]} 2. Bf4 {[%emt 0:00:14]} g6 {[%emt 0:00:06]} 3. e3 {[%emt 0:00:26]} Bg7 {[%emt 0:00:09]} 4. h3 {[%emt 0:00:19]} O-O {[%emt 0:01:26]} 5. Nf3 {[%emt 0:00:09]} d6 {[%emt 0:00:49]} 6. Be2 {[%emt 0:00:38]} Nc6 {[%emt 0:00:37]} 7. O-O {[%emt 0:00:23]} Nd7 {[%emt 0:00:29]} 8. Bh2 {[%emt 0:00:48]} e5 {[%emt 0:00:16]} 9. c3 {[%emt 0:00:51]} Kh8 {[%emt 0:01:58]} 10. Nbd2 {[%emt 0:00:55]} h6 {[%emt 0:04:26]} 11. Re1 {[%emt 0:02:28]} f5 {[%emt 0:04:31]} 12. dxe5 {[%emt 0:04:07]} dxe5 {[%emt 0:01:28]} 13. Nc4 {[%emt 0:02:10]} Qe7 {[%emt 0:11:52]} 14. Qb3 {[%emt 0:05:16]} b6 $11 {[%emt 0:11:16]} 15. a4 {[%emt 0:03:16]} a5 {[%emt 0:03:42]} 16. Qa3 {[%emt 0:02:28]} Qe6 {[%emt 0:05:53]} 17. Qa2 {[%emt 0:01:47]} Bb7 {[%emt 0:02:47]} 18. Ncxe5 {[%emt 0:00:45]} Qe8 {[%emt 0:05:30]} 19. Nxc6 {[%emt 0:01:27]} Bxc6 {[%emt 0:00:44]} 20. Bxc7 {[%emt 0:02:11]} Rc8 {[%emt 0:02:34]} 21. Bd6 {[%emt 0:00:56]} Rf6 {[%emt 0:01:48]} 22. Red1 {[%emt 0:00:39]} f4 {[%emt 0:03:16]} 23. e4 {[%emt 0:03:10]} Bxe4 {[%emt 0:04:27]} 24. Bb5 {[%emt 0:01:43]} Bc6 {[%emt 0:08:45]} 25. Bxc6 {[%emt 0:01:50]} Rxc6 {[%emt 0:00:20]} 26. Re1 {[%emt 0:00:37]} Qg8 {[%emt 0:03:50]} 27. Qxg8+ {[%emt 0:00:41]} Kxg8 {[%emt 0:00:07]} 28. Re8+ {[%emt 0:02:03]} Kh7 {[%emt 0:02:18]} 29. Ba3 {[%emt 0:01:49]} Rfe6 {[%emt 0:03:45]} 30. Rxe6 {[%emt 0:02:37]} Rxe6 {[%emt 0:00:11]} 31. Re1 {[%emt 0:01:10]} Rxe1+ {[%emt 0:01:03]} 32. Nxe1 {[%emt 0:00:56]} Ne5 {[%emt 0:00:24]} 33. Kf1 {[%emt 0:00:12]} g5 {[%emt 0:02:06]} 34. Ke2 {[%emt 0:02:36]} Kg6 {[%emt 0:00:45]} 35. b3 {[%emt 0:00:31]} Kf5 {[%emt 0:01:22]} 36. Nc2 {[%emt 0:07:15]} Nd7 {[%emt 0:04:17]} 37. c4 {[%emt 0:03:05]} h5 {[%emt 0:04:33]} 38. f3 {[%emt 0:02:09]} Bf6 {[%emt 0:01:27]} 39. b4 {[%emt 0:05:58]} axb4 {[%emt 0:00:51]} 40. Bxb4 {[%emt 0:01:17]} Ke6 {[%emt 0:02:22]} 41. Kd2 {[%emt 0:41:03]} Kf5 {[%emt 0:31:45]} 42. Na3 {[%emt 0:15:48]} g4 {[%emt 0:00:00]} 43. hxg4+ {[%emt 0:00:00]} hxg4 {[%emt 0:00:00]} 44. Bc3 {[%emt 0:00:00]} gxf3 {[%emt 0:00:00]} 45. gxf3 {[%emt 0:00:00]} Nc5 {[%emt 0:00:00]} 46. Bxf6 {[%emt 0:00:00]} Kxf6 {[%emt 0:00:00]} 47. Kc3 {[%emt 0:00:00]} Nxa4+ {[%emt 0:00:00]} 48. Kd4 {[%emt 0:00:00]} Nc5 {[%emt 0:00:00]} 49. Kd5 {[%emt 0:00:00]} Nd7 {[%emt 0:00:00]} 50. Nb5 {[%emt 0:00:00]} Kg5 {[%emt 0:00:00]} 51. Nd6 {[%emt 0:00:00]} Kh4 {[%emt 0:00:00]} 52. Ne4 {[%emt 0:00:00]} Kh3 {[%emt 0:00:00]} 53. Ke6 {[%emt 0:00:00]} Nb8 {[%emt 0:03:50]} 54. Kd6 {[%emt 0:00:00]} Kg2 {[%emt 0:01:29]} 55. Ng5 {[%emt 0:00:00]} Na6 {[%emt 0:01:25]} 56. Kc6 {[%emt 0:00:00]} Nb4+ {[%emt 0:00:43]} 57. Kxb6 {[%emt 0:00:00]} Nd3 {[%emt 0:00:32]} 58. c5 {[%emt 0:00:00]} Ne5 {[%emt 0:00:11]} 59. c6 {[%emt 0:00:00]} Nc4+ {[%emt 0:00:43]} 60. Kc5 {[%emt 0:00:00]} Ne5 {[%emt 0:00:31]} 61. c7 {[%emt 0:00:00]} Nd7+ {[%emt 0:00:06]} 62. Kc6 {[%emt 0:00:00]} Ne5+ {[%emt 0:00:12]} 63. Kd6 {[%emt 0:00:00]} Nc4+ {[%emt 0:00:08]} 64. Kc5 {[%emt 0:00:00]} 1-0

[Event "FIDE WY-U16 Olympiad 2022"]
[Site "Nakhchivan"]
[Date "2022.10.04"]
[Round "3.24"]
[White "Maklakova, Naomi"]
[Black "Jafarova, Aysel"]
[Result "1-0"]
[ECO "D02"]
[WhiteElo "1625"]
[BlackElo "1534"]
[Annotator "NA RC COMBH"]
[PlyCount "75"]
[EventDate "2022.10.02"]
[EventType "team-tourn"]
[EventCountry "AZE"]
[SourceTitle "playchess.com"]
[Source "ChessBase"]
[SourceQuality "1"]
[WhiteTeam "Latvia"]
[WhiteTeamCountry "LAT"]
[TimeControl "40/5400+30:1800+30"]

1. d4 {[%emt 0:00:14]} d5 {[%emt 0:00:04]} 2. Nf3 {[%emt 0:00:08]} Nf6 {[%emt 0:00:05]} 3. c3 {[%emt 0:00:10]} c5 {[%emt 0:00:28]} 4. dxc5 {[%emt 0:00:10]} e6 {[%emt 0:01:14]} 5. b4 {[%emt 0:00:13]} a5 {[%emt 0:01:58]} 6. e3 {[%emt 0:00:31]} axb4 {[%emt 0:09:13]} 7. cxb4 {[%emt 0:00:10]} b6 {[%emt 0:02:58]} 8. Bb5+ {[%emt 0:00:25]} Bd7 {[%emt 0:00:50]} 9. Bxd7+ {[%emt 0:00:07]} Qxd7 {[%emt 0:07:11]} 10. a4 {[%emt 0:04:08]} bxc5 {[%emt 0:08:48]} 11. b5 {[%emt 0:00:14]} Bd6 {[%emt 0:05:43]} 12. O-O {[%emt 0:00:48]} Ne4 {[%emt 0:04:10]} 13. Bb2 {[%emt 0:03:17]} O-O {[%emt 0:03:16]} 14. Nc3 {[%emt 0:06:46]} Nxc3 {[%emt 0:09:25]} 15. Bxc3 {[%emt 0:00:07]} Qb7 {[%emt 0:07:14]} 16. Qe2 {[%emt 0:05:23]} Nd7 {[%emt 0:05:36]} 17. Rfb1 {[%emt 0:12:16]} Nb6 {[%emt 0:04:26]} 18. a5 {[%emt 0:02:44]} Nc4 {[%emt 0:03:08]} 19. Nd2 {[%emt 0:03:11]} Ne5 {[%emt 0:03:40]} 20. Nb3 {[%emt 0:16:42]} Nc4 {[%emt 0:03:52]} 21. Nd2 {[%emt 0:01:09]} Ne5 {[%emt 0:00:18]} 22. f4 {[%emt 0:05:36]} Ng6 {[%emt 0:05:10]} 23. Nb3 {[%emt 0:02:01]} d4 {[%emt 0:01:52]} 24. a6 {[%emt 0:03:56]} Qe4 {[%emt 0:01:41]} 25. Nd2 {[%emt 0:00:23]} Nxf4 {[%emt 0:01:03]} 26. Qf2 {[%emt 0:02:09]} Qxe3 {[%emt 0:00:26]} 27. Qxe3 {[%emt 0:01:25]} dxe3 {[%emt 0:00:03]} 28. Ne4 {[%emt 0:00:07]} Ne2+ {[%emt 0:00:26]} 29. Kf1 {[%emt 0:00:01]} Nxc3 {[%emt 0:00:37]} 30. Nxc3 {[%emt 0:00:01]} Be5 {[%emt 0:02:13]} 31. Ra3 {[%emt 0:00:03]} Rfb8 {[%emt 0:04:38]} 32. Ne4 {[%emt 0:00:39]} c4 {[%emt 0:00:53]} 33. b6 {[%emt 0:01:21]} Bd4 {[%emt 0:01:51]} 34. b7 {[%emt 0:00:49]} Ra7 {[%emt 0:00:27]} 35. Rb4 {[%emt 0:00:51]} f5 {[%emt 0:02:06]} 36. Rxc4 {[%emt 0:00:07]} Rbxb7 {[%emt 0:00:51]} 37. axb7 {[%emt 0:00:10]} Rxb7 {[%emt 0:00:23]} 38. Ra8+ {[%emt 0:00:15]} 1-0

[Event "FIDE WY-U16 Olympiad 2022"]
[Site "Nakhchivan"]
[Date "2022.10.04"]
[Round "3.24"]
[White "Fawaz, Nadia"]
[Black "Jiang, Kate Yuhua"]
[Result "0-1"]
[ECO "D11"]
[WhiteElo "1385"]
[BlackElo "1649"]
[Annotator "NA RC COMBH"]
[PlyCount "45"]
[EventDate "2022.10.02"]
[EventType "team-tourn"]
[EventCountry "AZE"]
[SourceTitle "playchess.com"]
[Source "ChessBase"]
[SourceQuality "1"]
[WhiteTeam "Lebanon"]
[BlackTeam "Canada"]
[WhiteTeamCountry "LBN"]
[BlackTeamCountry "CAN"]
[TimeControl "40/5400+30:1800+30"]

1. d4 {[%emt 0:00:34]} d5 {[%emt 0:00:01]} 2. c4 {[%emt 0:00:39]} c6 {[%emt 0:00:02]} 3. Nf3 {[%emt 0:00:40]} Nf6 {[%emt 0:00:01]} 4. e3 {[%emt 0:00:48]} e6 {[%emt 0:00:02]} 5. b3 {[%emt 0:00:57]} Nbd7 {[%emt 0:00:03]} 6. Bd3 {[%emt 0:01:04]} Bd6 {[%emt 0:00:03]} 7. Bb2 {[%emt 0:00:55]} Qc7 {[%emt 0:01:14]} 8. Nbd2 {[%emt 0:01:54]} O-O {[%emt 0:01:16]} 9. O-O {[%emt 0:01:02]} Re8 {[%emt 0:01:08]} 10. Rc1 {[%emt 0:08:10]} b6 {[%emt 0:03:46]} 11. Re1 {[%emt 0:02:59]} Bb7 {[%emt 0:02:04]} 12. Bb1 {[%emt 0:09:32]} h6 {[%emt 0:04:04]} 13. h3 {[%emt 0:07:39]} Rac8 {[%emt 0:07:12]} 14. Qc2 {[%emt 0:24:19]} c5 {[%emt 0:06:36]} 15. dxc5 {[%emt 0:01:31]} bxc5 {[%emt 0:00:58]} 16. Rcd1 {[%emt 0:13:37]} Red8 {[%emt 0:08:12]} 17. Ba1 {[%emt 0:14:41]} a5 {[%emt 0:01:04]} 18. a4 {[%emt 0:00:28]} Be7 {[%emt 0:05:31]} 19. Rc1 {[%emt 0:04:16]} Rb8 {[%emt 0:04:13]} 20. Rcd1 {[%emt 0:04:13]} Qb6 {[%emt 0:08:16]} 21. Ne5 {[%emt 0:00:29]} Ba6 {[%emt 0:08:31]} 22. Nxd7 {[%emt 0:00:31]} Rxd7 {[%emt 0:00:01]} 23. Bxf6 0-1

[Event "FIDE WY-U16 Olympiad 2022"]
[Site "Nakhchivan"]
[Date "2022.10.04"]
[Round "3.25"]
[White "Omonov, Asrorjon"]
[Black "Montes Orozco, Miguel Angel"]
[Result "1/2-1/2"]
[ECO "D02"]
[WhiteElo "2064"]
[BlackElo "2051"]
[Annotator "TA"]
[PlyCount "120"]
[EventDate "2022.10.02"]
[EventType "team-tourn"]
[EventCountry "AZE"]
[SourceTitle "playchess.com"]
[Source "ChessBase"]
[SourceQuality "1"]
[WhiteTeam "Uzbekistan"]
[BlackTeam "Mexico"]
[WhiteTeamCountry "UZB"]
[BlackTeamCountry "MEX"]
[TimeControl "40/5400+30:1800+30"]

{[%evp 10,120,15,-4,0,-9,0,-16,-12,-13,-20,-34,-20,-42,-19,-34,-20,-20,-28,-32,-14,-45,-10,-52,-36,-48,-39,-39,-12,-49,-35,-33,-24,-29,-27,-35,-17,-50,-11,-12,-10,-48,-50,-40,-35,-39,-8,-8,-8,-36,-9,-45,0,-37,0,-18,0,0,16,30,30,0,35,35,35,34,25,25,35,4,12,0,0,0,0,0,0,0,0,0,47,47,98,98,98,98,98,98,98,98,98,98,98,98,98,98,98,98,98,72,96,-8,27,0,98,93,98,98,98,88,98,98,98]} 1. d4 {[%emt 0:00:32]} d5 {[%emt 0:00:30]} 2. Nf3 {[%emt 0:00:14]} Nf6 {[%emt 0:00:06]} 3. Bf4 {[%emt 0:00:18]} e6 {[%emt 0:00:27]} 4. e3 {[%emt 0:00:15]} Bd6 {[%emt 0:00:08]} 5. Bg3 {[%emt 0:00:07]} O-O {[%emt 0:00:37]} 6. Nbd2 {[%emt 0:00:24]} c5 {[%emt 0:00:08] D02: 1 d4 d5 2 Nf3 sidelines, including 2...Nf6 3 g3 and 2...Nf6 3 Bf4.} 7. c3 {[%emt 0:00:04]} Qc7 {[%emt 0:00:30]} 8. Ne5 {[%emt 0:04:45]} Nbd7 {[%emt 0:00:31] The position is equal.} 9. f4 {[%emt 0:01:42]} Ne4 {[%emt 0:04:29]} 10. Bd3 {[%emt 0:03:35]} f5 {[%emt 0:00:14][%cal Bf7f5,Bf5e4][%mdl 32]} 11. Nxe4 {[%emt 0:07:03]} fxe4 {[%emt 0:02:52]} 12. Be2 {[%emt 0:02:50]} Nxe5 {[%emt 0:15:53]} 13. dxe5 {[%emt 0:00:25]} Be7 {[%emt 0:00:08] [#]} 14. O-O $146 {[%emt 0:00:06]} ({Predecessor:} 14. Qd2 c4 15. O-O Bd7 16. b3 b5 17. bxc4 bxc4 18. Rab1 {½-½ (18) Mueller,M (1941)-Hey,R (2063) GER email 2007}) 14... Bd7 {[%emt 0:03:06]} 15. Bg4 {[%emt 0:20:55][%cal Of4f5]} (15. f5 $5) 15... Rad8 {[%emt 0:21:19]} 16. Rf2 {[%emt 0:15:37][%cal Of4f5]} Qb6 {[%emt 0:04:36]} 17. Kh1 {[%emt 0:10:28]} g6 {[%emt 0:04:58]} 18. Rd2 {[%emt 0:03:07]} Bb5 {[%emt 0:02:33]} 19. Be2 {[%emt 0:03:50]} c4 {[%emt 0:03:53]} 20. Bf2 {[%emt 0:14:29]} Bc5 {[%emt 0:08:20]} 21. Bg4 {[%emt 0:00:40]} Bd7 {[%emt 0:08:20] Threatens to win with ...h5.} 22. Qe2 {[%emt 0:00:39]} a5 {[%emt 0:07:04]} 23. Re1 {[%emt 0:01:16]} Rf7 {[%emt 0:04:34]} 24. Bh4 {[%emt 0:01:06]} Rb8 {[%emt 0:01:00]} 25. Bh3 {[%emt 0:02:55]} Qc6 {[%emt 0:00:18]} 26. Bf6 {[%emt 0:02:37]} b5 {[%emt 0:00:08]} 27. Bg4 {[%emt 0:01:11]} Be7 {[%emt 0:03:29]} 28. Bxe7 {[%emt 0:00:29]} Rxe7 {[%emt 0:00:01]} 29. h4 {[%emt 0:00:19]} Qc8 {[%emt 0:00:33]} 30. Bh3 {[%emt 0:00:34]} Qf8 {[%emt 0:00:29]} 31. g4 {[%emt 0:00:18]} Kh8 {[%emt 0:01:01]} 32. Qh2 {[%emt 0:00:52]} Qh6 {[%emt 0:01:22]} 33. Qg3 {[%emt 0:00:14]} Rg8 {[%emt 0:00:40]} 34. Rh2 {[%emt 0:00:18]} Qf8 {[%emt 0:00:16]} 35. Qf2 {[%emt 0:00:27]} Rf7 {[%emt 0:00:14]} 36. g5 {[%emt 0:00:58]} h6 {[%emt 0:00:49]} 37. gxh6 {[%emt 0:00:15]} Rh7 {[%emt 0:00:04]} 38. Rg1 {[%emt 0:00:23]} Qxh6 {[%emt 0:00:40]} 39. Bf1 {[%emt 0:00:27]} Qf8 {[%emt 0:00:15]} 40. Rg5 {[%emt 0:00:12]} Be8 {[%emt 0:00:03]} 41. Bh3 {[%emt 0:30:32][%cal Bf1h3,Bh3g4,Bg4d1][%mdl 32]} Bf7 {[%emt 0:30:39]} 42. Qg3 {[%emt 0:01:03]} Rgg7 {[%emt 0:02:55]} 43. Bg4 {[%emt 0:00:15]} Qe7 {[%emt 0:00:00]} 44. Bd1 {[%emt 0:00:00]} a4 {[%emt 0:00:00]} (44... b4 $11 {should be considered.}) 45. a3 $1 $14 {[%emt 0:00:00]} Qe8 {[%emt 0:00:00]} (45... Kg8 $14) 46. Kg1 $16 {[%emt 0:00:00][%cal Bh1g1,Bg1f1,Bf1e1,Be1d2,Bd2c2][%mdl 32]} Kg8 {[%emt 0:00:00]} 47. Rg2 {[%emt 0:00:00][%cal Oh4h5] Hoping for h5! White is more active.} Qf8 {[%emt 0:00:00]} 48. Kf1 {[%emt 0:00:00]} Kh8 {[%emt 0:00:00]} 49. Ke1 {[%emt 0:00:00]} Rg8 {[%emt 0:00:00]} 50. Kd2 {[%emt 0:00:00]} Rgg7 {[%emt 0:00:00]} 51. Kc2 {[%emt 0:00:00]} Rg8 {[%emt 0:00:00]} 52. Qe1 {[%emt 0:00:00]} Rgg7 {[%emt 0:00:00]} 53. R5g4 {[%emt 0:00:00]} Kg8 {[%emt 0:00:00]} 54. Qd2 {[%emt 0:00:00]} Qc5 {[%emt 0:00:00] [#]} 55. Qd4 {[%emt 0:00:00]} (55. Qf2 $1 $16) 55... Qc7 {[%emt 0:00:00]} 56. Qd2 {[%emt 0:00:00]} Qe7 {[%emt 0:00:00] [#]} (56... Qc5 $11 {remains equal.}) 57. Qf2 $1 {[%emt 0:00:00] White is better.} Qc5 {[%emt 0:00:00]} 58. Qg3 {[%emt 0:00:00]} Qf8 {[%emt 0:00:00]} 59. Qh3 {[%emt 0:00:00]} Kh8 {[%emt 0:00:00]} 60. Rg5 {[%emt 0:00:00]} Qe8 {[%emt 0:00:00] Weighted Error Value: White=0.11 (very precise) /Black=0.14 (very precise)} 1/2-1/2

[Event "FIDE WY-U16 Olympiad 2022"]
[Site "Nakhchivan"]
[Date "2022.10.04"]
[Round "3.25"]
[White "Baghirov, Orkhan"]
[Black "Southcott-Moyers, Indy"]
[Result "1-0"]
[ECO "D11"]
[WhiteElo "1571"]
[BlackElo "1952"]
[Annotator "TA"]
[PlyCount "103"]
[EventDate "2022.10.02"]
[EventType "team-tourn"]
[EventCountry "AZE"]
[SourceTitle "playchess.com"]
[Source "ChessBase"]
[SourceQuality "1"]
[WhiteTeam "Azerbaijan"]
[BlackTeam "England"]
[WhiteTeamCountry "AZE"]
[BlackTeamCountry "ENG"]
[TimeControl "40/5400+30:1800+30"]

{[%evp 16,103,12,18,1,0,28,0,0,-25,4,-9,0,0,-6,-3,5,12,20,20,14,26,29,29,22,10,25,18,38,22,34,28,44,18,108,97,104,81,109,108,121,98,136,131,158,127,127,127,127,127,133,120,151,142,135,132,249,231,224,224,417,419,410,403,404,368,411,416,562,428,508,489,566,571,672,623,614,610,655,608,774,731,29974,29976,29976,29976,29975,29976,5531,5256]} 1. d4 {[%emt 0:00:10]} d5 {[%emt 0:00:05]} 2. c4 {[%emt 0:00:19]} c6 {[%emt 0:00:06]} 3. Nf3 {[%emt 0:00:06]} Nf6 {[%emt 0:00:08]} 4. Qc2 {[%emt 0:00:29]} dxc4 {[%emt 0:00:52]} 5. Qxc4 {[%emt 0:00:08]} Bf5 {[%emt 0:00:27]} 6. g3 {[%emt 0:01:04]} e6 {[%emt 0:03:26]} 7. Bg2 {[%emt 0:00:32]} Be7 {[%emt 0:02:43] The modern move.} 8. O-O {[%emt 0:00:30]} Nbd7 {[%emt 0:03:31]} 9. e3 {[%emt 0:01:06]} O-O {[%emt 0:02:43] D23: Queen's Gambit Accepted: 3 Nf3 Nf6 sidelines.} 10. Nbd2 {[%emt 0:02:25]} Ne4 {[%emt 0:01:47]} 11. Nxe4 {[%emt 0:05:52]} Bxe4 {[%emt 0:00:06] The position is equal.} 12. b3 {[%emt 0:00:03] [#]} Nf6 $146 {[%emt 0:08:07]} ({Predecessor:} 12... a5 13. Bb2 a4 14. Qe2 Nf6 15. Rfd1 axb3 16. axb3 Qd5 17. Ne1 Bxg2 18. Nxg2 Qxb3 {0-1 (31) Toth,L (2171)-Vajda,S (2375) Paks 2009}) 13. Bb2 {[%emt 0:02:54]} a5 {[%emt 0:04:48]} 14. Ne5 {[%emt 0:02:41]} Bxg2 {[%emt 0:04:31]} 15. Kxg2 {[%emt 0:00:44]} Qd5+ {[%emt 0:00:08]} 16. f3 {[%emt 0:01:00]} c5 {[%emt 0:14:01]} 17. Rfd1 {[%emt 0:07:54]} cxd4 {[%emt 0:05:06]} 18. Bxd4 {[%emt 0:01:29]} b5 {[%emt 0:04:23]} 19. Qe2 {[%emt 0:03:25][%cal Oe5f7]} Qb7 $1 {[%emt 0:01:05]} 20. e4 {[%emt 0:01:28]} Rac8 {[%emt 0:03:28]} 21. Rac1 {[%emt 0:07:21]} Rfd8 {[%emt 0:05:42] [#] And now ...Rxc1 would win.} 22. Bb2 {[%emt 0:09:36][%cal Bd4b2,Bb2c1,Bc1d2,Bd2e3,Be3c5][%mdl 32]} Rxc1 {[%emt 0:02:38]} 23. Rxc1 {[%emt 0:03:10]} Bb4 {[%emt 0:00:39] ...Rd2 is the strong threat.} 24. Nd3 {[%emt 0:01:10]} (24. Rc2 $5 {[%cal Re5c6]}) 24... Ne8 {[%emt 0:06:58]} (24... Bf8 $11 {remains equal.}) 25. Nxb4 $16 {[%emt 0:06:14] White stays focused until the end.} axb4 {[%emt 0:00:08]} 26. Rc5 {[%emt 0:01:18]} Qa6 {[%emt 0:04:36]} 27. Bc1 {[%emt 0:04:09] White is more active.} (27. Rxb5 $2 Nc7 28. a4 bxa3 29. Bxa3 Qxb5 $19) 27... h6 {[%emt 0:02:27]} 28. Rc2 {[%emt 0:01:24]} ({Don't blunder} 28. Rxb5 $2 Nc7 29. a4 bxa3 30. Bxa3 Qxb5 $19) 28... Nf6 {[%emt 0:04:20]} 29. Bd2 {[%emt 0:01:00]} Qa5 {[%emt 0:01:40]} 30. Qe1 {[%emt 0:01:55]} Rd4 {[%emt 0:00:49]} 31. Be3 {[%emt 0:00:50]} Rd8 {[%emt 0:03:19]} 32. Bc5 {[%emt 0:00:44]} Rc8 {[%emt 0:00:09] [#] White must now prevent ...Nd7.} 33. Qd2 {[%emt 0:00:29] Prevents Nd7.} Qc7 {[%emt 0:00:17]} 34. Qxb4 {[%emt 0:01:53]} Qc6 {[%emt 0:01:25]} 35. Qc3 {[%emt 0:02:52]} Nxe4 {[%emt 0:02:19]} (35... Qb7 $16 {keeps fighting.} 36. Qd3 Nd7) 36. fxe4 $18 {[%emt 0:00:08]} Qxe4+ {[%emt 0:00:07]} 37. Kg1 {[%emt 0:08:57]} b4 $2 {[%emt 0:02:07]} (37... Rd8 38. Rc1 Qe2) 38. Qd2 {[%emt 0:04:03]} Qf5 {[%emt 0:02:30]} 39. Qf2 {[%emt 0:00:05]} Qd3 {[%emt 0:00:10]} 40. Rc1 {[%emt 0:01:49] Inhibits Qd1+.} Qd5 {[%emt 0:03:10]} 41. Rc4 {[%emt 0:35:36]} Qe5 {[%emt 0:05:57]} 42. Bxb4 {[%emt 0:00:00]} Rd8 {[%emt 0:00:11]} 43. Rc1 {[%emt 0:00:00]} Qe4 {[%emt 0:00:26]} 44. Bc5 {[%emt 0:00:00]} Rd5 {[%emt 0:01:14]} 45. Re1 {[%emt 0:00:00]} Qd3 {[%emt 0:00:18]} 46. b4 {[%emt 0:00:00]} Qc3 {[%emt 0:01:33]} 47. Rf1 {[%emt 0:00:00]} f5 {[%emt 0:00:29]} 48. Qe3 {[%emt 0:00:00]} Rd3 {[%emt 0:01:14]} 49. Qxe6+ {[%emt 0:00:00]} Kh8 {[%emt 0:00:15]} 50. Qc8+ {[%emt 0:00:00]} Kh7 {[%emt 0:00:13]} 51. Qxf5+ {[%emt 0:00:00]} Kh8 {[%emt 0:00:17]} 52. Qe4 {[%emt 0:00:00] Weighted Error Value: White=0.13 (very precise) /Black=0.38} 1-0